bitfinex-derivatives/quotes_ETHF0:USTF0_20241007
["timestamp","ask_amount","ask_price","bid_price","bid_amount"]
[1728309963496,0.4249,2487.3,2486.9,3.2078]
[1728309963800,0.40214,2487.1,2487.0,0.40214]
[1728309964098,0.40215,2487.0,2486.9,3.60996]
[1728309964291,0.40214,2487.1,2487.0,0.40213]
[1728309964598,0.40214,2487.1,2487.0,0.40214]
[1728309964796,0.40215,2487.0,2486.9,3.2078]
[1728309964987,1.0053,2487.2,2486.3,1.00566]
[1728309964988,4.0208,2487.2,2486.3,1.00566]
[1728309965298,4.2849,2487.3,2486.5,3.2078]
[1728309965299,0.4249,2487.3,2486.5,3.2078]
[1728309965602,0.40216,2487.0,2486.9,0.40215]
[1728309966292,0.4249,2487.3,2486.7,1.00549]
[1728309966495,0.4249,2487.3,2486.8,5.04543]
[1728309966690,0.4249,2487.3,2486.8,4.04]
[1728309966885,1.0053,2487.2,2486.5,3.2078]
[1728309967194,1.00544,2486.9,2486.5,3.2078]
[1728309967697,0.40219,2486.8,2486.7,0.40217]
[1728309968596,4.2849,2487.3,2486.5,3.2078]
[1728309968597,0.40218,2486.9,2486.8,0.40217]
[1728309968891,1.00533,2487.1,2486.5,3.2078]
[1728309969092,0.40221,2486.6,2486.5,3.61001]
[1728309969297,3.2078,2487.9,2486.6,4.0216]
[1728309969593,0.812,2488.8,2487.7,3.2078]
[1728309969796,3.2078,2489.9,2489.4,0.40176]
[1728309969993,3.60948,2489.9,2489.4,0.40175]
[1728309970189,3.2078,2489.9,2489.2,3.2078]
[1728309970386,0.40174,2489.6,2489.2,3.60958]
[1728309970596,4.21204,2489.9,2488.7,3.2078]
[1728309970796,0.4239,2489.8,2488.7,3.2078]
[1728309971095,0.40175,2489.5,2489.1,0.4018]
[1728309971294,0.4239,2489.8,2488.7,3.2078]
[1728309971491,3.86,2489.7,2488.7,3.2078]
[1728309971791,3.86,2489.7,2488.4,0.40191]
[1728309971792,0.40186,2488.8,2488.4,0.40191]
[1728309971995,0.40185,2488.9,2488.4,0.40191]
[1728309972195,1.00448,2489.2,2488.3,3.2078]
[1728309972196,0.40192,2488.4,2488.3,3.2078]
[1728309972400,2.00914,2489.0,2488.0,0.40198]
[1728309972401,0.40194,2488.3,2488.0,0.40198]
[1728309972694,1.00469,2488.7,2488.0,0.40198]
[1728309972695,0.40193,2488.4,2488.0,0.40198]
[1728309972903,0.40194,2488.3,2488.0,0.40198]
[1728309973091,1.00469,2488.7,2488.1,0.40196]
[1728309973397,0.40196,2488.2,2487.9,0.40199]
[1728309973601,0.40196,2488.2,2487.7,0.4057]
[1728309973794,7.8582,2488.8,2487.7,0.4057]
[1728309973795,0.40197,2488.1,2487.8,0.40201]
[1728309974096,0.402,2487.9,2487.7,0.4057]
[1728309974300,7.0678,2488.2,2487.2,3.2078]
[1728309974497,0.4011,2487.8,2487.2,3.2078]
[1728309974799,0.40201,2487.9,2487.7,0.40202]
[1728309974995,0.3893,2488.1,2487.2,3.2078]
[1728309975192,0.40203,2487.8,2487.6,0.40204]
[1728309975694,0.3893,2488.1,2487.2,3.2078]
[1728309975886,0.40201,2487.9,2487.7,0.40203]
[1728309976091,0.40201,2487.9,2487.2,3.2078]
[1728309976297,0.3893,2488.1,2487.2,3.2078]
[1728309976496,1.39426,2488.1,2487.3,0.4021]
[1728309976708,1.39426,2488.1,2487.2,3.60991]
[1728309976709,0.40208,2487.4,2487.2,3.60991]
[1728309976900,1.39426,2488.1,2487.2,3.2078]
[1728309976901,0.40207,2487.5,2487.2,3.2078]
[1728309977301,0.40206,2487.6,2487.3,0.40209]
[1728309977617,1.00505,2487.8,2487.0,0.4057]
[1728309977811,0.40211,2487.3,2487.1,0.40212]
[1728309978104,0.40211,2487.3,2487.0,0.4057]
[1728309978307,0.40211,2487.3,2487.0,0.80784]
[1728309978500,0.40213,2487.2,2486.9,0.40216]
[1728309978704,0.40213,2487.2,2486.5,3.2078]
[1728309978705,1.00524,2487.4,2486.5,3.6022]
[1728309978905,1.00524,2487.4,2486.8,0.40218]
[1728309978906,0.40215,2487.0,2486.8,0.40218]
[1728309979106,0.40215,2487.0,2486.5,3.6022]
[1728309979107,1.1685,2487.4,2486.5,3.6022]
[1728309979407,0.40212,2487.2,2486.9,0.40215]
[1728309979795,1.1685,2487.4,2486.5,3.6022]
[1728309980111,0.7827,2487.4,2486.8,3.2078]
[1728309980301,0.7827,2487.4,2487.3,0.4021]
[1728309980302,0.394,2487.4,2487.3,0.4021]
[1728309980496,0.40211,2487.3,2486.9,0.40216]
[1728309980700,0.40214,2487.1,2486.9,0.40215]
[1728309981005,0.40214,2487.1,2486.9,0.40216]
[1728309981209,0.394,2487.4,2486.6,1.00553]
[1728309981600,0.394,2487.4,2486.8,3.2078]
[1728309981808,0.4021,2487.3,2487.1,0.40213]
[1728309982011,0.40211,2487.2,2487.1,0.40213]
[1728309982505,0.40211,2487.2,2486.8,3.2078]
[1728309982722,0.40209,2487.4,2487.2,0.4021]
[1728309982902,0.40209,2487.4,2487.2,0.40211]
[1728309983098,0.40207,2487.5,2487.2,0.40211]
[1728309983402,0.40209,2487.4,2487.2,0.40211]
[1728309983595,0.3887,2487.8,2487.3,0.40209]
[1728309983596,0.40207,2487.5,2487.3,0.40209]
[1728309983799,0.40207,2487.5,2487.4,0.40208]
[1728309984111,1.00509,2487.7,2486.8,4.21323]
[1728309984406,0.3887,2487.8,2486.9,1.00541]
[1728309984598,1.39377,2487.8,2486.9,1.00541]
[1728309984803,0.3887,2487.8,2487.1,3.2078]
[1728309985001,0.40203,2487.7,2487.2,0.4111]
[1728309985205,0.402,2488.0,2487.8,0.40201]
[1728309985410,0.7812,2488.1,2487.8,0.40201]
[1728309985411,0.402,2487.9,2487.8,0.40201]
[1728309985619,0.3954,2488.1,2487.4,3.2078]
[1728309985904,0.40201,2487.9,2487.4,3.2078]
[1728309986101,0.40201,2487.9,2487.8,0.40202]
[1728309986298,0.40201,2487.9,2487.4,3.2078]
[1728309986497,1.40035,2488.1,2487.9,0.402]
[1728309986498,0.40199,2488.0,2487.9,0.402]
[1728309986706,0.40199,2488.0,2487.8,0.402]
[1728309987007,0.402,2487.9,2487.8,0.402]
[1728309987400,0.402,2487.9,2487.7,0.40202]
[1728309987596,0.402,2487.9,2487.4,4.21299]
[1728309988207,0.4106,2488.4,2487.4,4.21299]
[1728309988406,0.40198,2488.1,2487.6,1.00513]
[1728309988711,0.40198,2488.1,2488.0,0.40198]
[1728309988901,0.40198,2488.0,2487.9,0.40199]
[1728309989097,1.00485,2488.3,2487.8,0.40201]
[1728309989098,0.40201,2487.9,2487.8,0.40201]
[1728309989298,1.00491,2488.2,2487.9,0.402]
[1728309989599,0.40199,2488.0,2487.9,0.40199]
[1728309990113,0.40201,2487.9,2487.8,0.402]
[1728309990311,0.40199,2488.0,2487.9,0.40199]
[1728309991311,1.00491,2488.2,2487.5,1.00517]
[1728309991513,0.40197,2488.1,2487.5,1.00517]
[1728309991704,0.40195,2488.3,2488.2,0.40195]
[1728309991901,0.408,2488.6,2488.0,3.2078]
[1728309992111,1.41275,2488.6,2488.0,3.2078]
[1728309992306,0.40194,2488.3,2488.2,0.40194]
[1728309992606,0.408,2488.6,2488.0,4.21275]
[1728309992807,3.2078,2488.9,2488.0,4.21275]
[1728309993007,0.40189,2488.6,2488.5,0.40189]
[1728309993712,0.40191,2488.5,2488.4,0.40191]
[1728309993904,0.4019,2488.6,2488.5,0.4019]
[1728309994106,1.00461,2488.9,2488.3,3.60972]
[1728309994107,0.40192,2488.4,2488.3,3.60972]
[1728309994408,1.00461,2488.9,2488.0,0.40197]
[1728309994409,1.00474,2488.6,2488.0,0.40197]
[1728309994704,7.5478,2488.9,2487.9,0.4114]
[1728309994705,3.2078,2488.9,2487.9,0.4114]
[1728309994907,0.40192,2488.5,2488.4,0.40192]
[1728309995802,4.0184,2488.5,2487.9,3.6192]
[1728309996011,3.2078,2488.9,2488.0,0.40197]
[1728309996012,0.40198,2488.1,2488.0,0.40197]
[1728309996702,0.40198,2488.1,2488.0,0.40198]
[1728309997011,0.40197,2488.2,2488.1,0.40196]
[1728309997416,0.4159,2488.5,2488.2,0.40194]
[1728309997719,3.60964,2488.9,2488.8,0.40186]
[1728309998014,3.60964,2488.9,2488.4,2.0096]
[1728309998015,3.2078,2488.9,2488.5,0.3901]
[1728309998315,3.2078,2488.9,2488.8,0.40186]
[1728309998316,3.60965,2488.9,2488.8,0.40186]
[1728309998513,0.4159,2489.3,2489.1,0.40181]
[1728309998514,0.4018,2489.2,2489.1,0.40181]
[1728309998816,0.4159,2489.3,2488.8,3.2078]
[1728309999012,0.40181,2489.1,2488.8,3.2078]
[1728309999317,0.4018,2489.2,2489.1,0.40179]
[1728309999519,0.81768,2489.3,2488.8,4.21244]
[1728309999707,0.40174,2489.5,2489.3,0.40176]
[1728310000209,0.40174,2489.5,2489.2,0.4168]
[1728310000412,0.40174,2489.5,2489.3,0.40177]
[1728310000614,0.4193,2489.6,2489.2,0.4168]
[1728310000815,3.2078,2489.8,2489.2,0.4168]
[1728310001124,0.40173,2489.6,2489.4,0.40175]
[1728310001711,0.40174,2489.6,2489.4,0.40175]
[1728310002111,3.2078,2489.8,2489.2,0.4168]
[1728310002112,0.40174,2489.5,2489.2,0.4168]
[1728310002416,3.2078,2489.8,2489.2,0.81858]
[1728310002610,0.40177,2489.4,2489.2,0.81858]
[1728310002813,0.40177,2489.4,2489.2,0.4168]
[1728310003011,0.40177,2489.4,2489.3,0.40177]
[1728310003408,0.40175,2489.5,2489.4,0.40175]
[1728310003716,3.2078,2489.8,2489.2,0.4168]
[1728310003914,0.2,2490.0,2489.4,3.2078]
[1728310004110,0.2,2490.0,2489.9,0.40168]
[1728310004310,0.2,2490.0,2489.5,0.4157]
[1728310004512,0.40168,2489.9,2489.8,0.40168]
[1728310004717,0.2,2490.0,2489.5,0.4157]
[1728310005019,0.2,2490.0,2489.9,0.40168]
[1728310005222,0.2,2490.0,2489.9,4.41768]
[1728310005723,0.2,2490.0,2489.9,0.40168]
[1728310005923,0.2,2490.0,2489.8,0.3882]
[1728310006127,0.40169,2489.8,2489.7,3.2078]
[1728310006320,0.40174,2489.5,2489.4,0.3868]
[1728310006630,0.40173,2489.6,2489.5,0.40173]
[1728310007020,0.40174,2489.6,2489.4,0.78854]
[1728310007220,1.00426,2489.8,2489.4,0.78854]
[1728310007221,0.40174,2489.5,2489.4,0.78854]
[1728310007418,0.4017,2489.8,2489.7,0.4017]
[1728310007926,0.3974,2489.9,2489.5,0.40174]
[1728310007927,0.40173,2489.6,2489.5,0.40174]
[1728310008225,1.00426,2489.8,2489.4,0.3868]
[1728310008421,0.40172,2489.7,2489.5,0.40173]
[1728310008627,0.40173,2489.6,2489.5,3.60954]
[1728310009027,1.40163,2489.9,2489.4,0.3868]
[1728310009028,0.3974,2489.9,2489.4,0.3868]
[1728310009322,0.3974,2489.9,2489.5,3.2078]
[1728310009323,0.4017,2489.8,2489.5,3.2078]
[1728310009524,0.40169,2489.9,2489.6,0.40173]
[1728310009825,0.4017,2489.8,2489.7,0.4017]
[1728310010028,0.40173,2489.6,2489.5,3.2078]
[1728310010237,1.00426,2489.8,2489.4,0.3868]
[1728310010238,0.40174,2489.5,2489.4,0.3868]
[1728310010431,0.40177,2489.3,2489.2,0.40178]
[1728310010632,0.40181,2489.1,2489.0,0.3962]
[1728310010838,3.2078,2489.6,2489.3,0.40177]
[1728310010839,0.40176,2489.4,2489.3,0.40177]
[1728310011136,0.40179,2489.2,2489.1,0.4018]
[1728310011437,1.41254,2489.6,2489.1,3.2078]
[1728310011635,0.40178,2489.3,2489.2,0.40178]
[1728310011836,0.4082,2489.6,2489.1,3.2078]
[1728310012528,0.4082,2489.6,2488.8,3.2078]
[1728310012529,7.0678,2489.4,2488.8,3.2078]
[1728310012744,0.40184,2488.9,2488.8,3.60966]
[1728310013033,1.00444,2489.3,2488.8,3.2078]
[1728310013234,0.40183,2489.0,2488.9,0.40183]
[1728310013431,1.00448,2489.2,2488.9,0.40183]
[1728310013635,7.0678,2489.4,2488.8,3.60964]
[1728310013636,1.00444,2489.3,2488.8,3.60964]
[1728310013834,0.40184,2489.0,2488.9,0.40183]
[1728310014033,0.40184,2488.9,2488.8,3.60965]
[1728310014232,4.21223,2489.4,2488.8,3.2078]
[1728310014430,4.21223,2489.4,2489.0,0.40182]
[1728310014636,0.40179,2489.3,2489.2,0.40178]
[1728310014933,0.4082,2489.6,2489.0,1.00455]
[1728310015136,0.40175,2489.5,2489.4,0.40175]
[1728310015537,1.00434,2489.6,2489.1,0.3969]
[1728310015737,3.6128,2489.7,2489.1,0.3969]
[1728310015942,0.40179,2489.3,2489.2,0.40179]
[1728310016136,0.40178,2489.3,2489.2,0.40179]
[1728310016335,4.61709,2489.7,2489.1,0.3969]
[1728310016542,3.6128,2489.7,2489.1,0.3969]
[1728310016738,0.40173,2489.6,2489.3,0.40177]
[1728310017039,0.40177,2489.4,2489.3,0.40177]
[1728310017942,0.40173,2489.6,2489.1,0.3969]
[1728310018135,0.40179,2489.3,2489.2,0.40178]
[1728310018339,0.40173,2489.6,2489.1,0.3969]
[1728310018638,1.00437,2489.5,2489.1,0.3969]
[1728310018845,0.40179,2489.3,2489.2,0.40178]
[1728310019046,0.40177,2489.4,2489.3,0.40176]
[1728310020643,0.40179,2489.3,2489.2,0.40178]
[1728310020836,0.40176,2489.5,2489.4,0.40175]
[1728310021044,0.40174,2489.6,2489.5,0.40173]
[1728310021941,0.40176,2489.5,2489.4,0.40175]
[1728310022339,0.40177,2489.4,2489.3,0.40176]
[1728310022538,0.405,2489.7,2489.1,4.60921]
[1728310022741,0.40174,2489.6,2489.5,0.40173]
[1728310022942,0.80672,2489.7,2489.6,0.40173]
[1728310023142,0.40176,2489.5,2489.4,0.40174]
[1728310023338,0.40174,2489.6,2489.5,0.40173]
[1728310023650,0.40177,2489.4,2489.3,0.40176]
[1728310023945,0.40179,2489.2,2489.1,3.6047]
[1728310024146,0.40179,2489.2,2488.4,4.7834]
[1728310024147,3.2078,2489.2,2488.4,3.5982]
[1728310024355,0.4019,2488.6,2488.5,0.40189]
[1728310024652,1.00469,2488.7,2488.2,7.4664]
[1728310024951,5.0663,2489.1,2488.2,3.6064]
[1728310025139,0.40194,2488.3,2488.2,3.60975]
[1728310025450,0.40194,2488.3,2488.2,0.40195]
[1728310025646,0.40194,2488.3,2487.9,4.2128]
[1728310025647,1.0048,2488.5,2487.9,3.2078]
[1728310025851,0.40196,2488.2,2488.1,0.40196]
[1728310026148,1.00473,2488.6,2487.9,3.2078]
[1728310026149,3.2078,2488.5,2487.9,3.2078]
[1728310026336,3.86,2488.3,2487.5,0.40205]
[1728310026543,0.40209,2487.4,2487.2,0.40211]
[1728310026740,0.40207,2487.5,2487.1,3.2078]
[1728310027054,0.402,2488.0,2487.8,0.40201]
[1728310027259,0.402,2488.0,2487.4,4.21298]
[1728310027554,0.402,2488.0,2487.9,0.402]
[1728310028050,0.4161,2488.3,2487.8,0.40202]
[1728310028254,1.00489,2488.2,2487.7,3.2078]
[1728310028438,0.40202,2487.8,2487.7,3.2078]
[1728310028750,0.40202,2487.8,2487.4,3.60987]
[1728310028751,0.40207,2487.5,2487.4,3.60987]
[1728310028940,0.40207,2487.5,2487.0,5.48094]
[1728310028941,1.005,2488.0,2487.1,3.6311]
[1728310029142,1.005,2488.0,2486.8,1.20842]
[1728310029143,1.40746,2487.1,2486.2,1.03207698]
[1728310029346,4.2131,2487.2,2485.5,0.4233]
[1728310029347,7.0678,2486.7,2485.5,0.4233]
[1728310029652,0.40226,2486.3,2485.8,0.40233]
[1728310029842,0.40227,2486.3,2485.7,0.40235]
[1728310030144,0.40227,2486.3,2485.8,0.40233]
[1728310030343,0.40223,2486.5,2486.0,0.4023]
[1728310030544,0.40223,2486.5,2485.9,3.2078]
[1728310030545,3.2078,2486.7,2485.9,3.2078]
[1728310030849,0.4022,2486.7,2486.2,0.40227]
[1728310031048,4.21313,2487.1,2486.3,0.40225]
[1728310031751,4.21313,2487.1,2486.2,3.2078]
[1728310031752,0.40215,2487.0,2486.2,3.2078]
[1728310031948,3.60994,2487.1,2486.6,0.40221]
[1728310032354,3.2078,2487.1,2486.8,0.40218]
[1728310032947,0.40212,2487.2,2486.8,0.40218]
[1728310033155,0.40212,2487.2,2486.5,3.2078]
[1728310033156,3.2078,2487.5,2486.5,3.2078]
[1728310033348,0.40209,2487.4,2487.0,0.40214]
[1728310033655,0.40209,2487.4,2487.1,0.4225]
[1728310033851,3.2078,2487.5,2487.1,0.4225]
[1728310034157,1.00493,2488.1,2487.1,0.4225]
[1728310034453,1.39263,2488.1,2487.4,0.40208]
[1728310034640,0.40203,2487.7,2487.2,3.2078]
[1728310034849,1.39263,2488.1,2487.3,0.4021]
[1728310034850,0.40205,2487.6,2487.3,0.4021]
[1728310035451,3.2078,2487.9,2487.2,3.2078]
[1728310035649,0.40206,2487.6,2487.3,0.40209]
[1728310035855,0.40206,2487.6,2487.4,0.40208]
[1728310036754,0.40204,2487.7,2487.4,0.40208]
[1728310036954,0.40206,2487.6,2487.2,3.2078]
[1728310037259,0.40209,2487.4,2487.2,3.2078]
[1728310037558,0.40209,2487.4,2487.1,0.82462]
[1728310037754,3.2078,2487.9,2487.1,0.4225]
[1728310037954,0.40211,2487.2,2487.1,0.4225]
[1728310038551,1.00517,2487.5,2487.1,0.4225]
[1728310038856,0.40211,2487.2,2487.1,0.4225]
[1728310039253,3.9704,2487.6,2487.1,0.4225]
[1728310039459,3.576,2487.6,2487.1,0.4225]
[1728310039655,3.2078,2487.6,2487.1,0.4225]
[1728310039954,0.40206,2487.6,2487.4,0.40208]
[1728310040355,0.40202,2487.8,2487.6,0.40204]
[1728310040568,3.2078,2487.9,2487.3,1.00525]
[1728310040763,3.2078,2487.9,2487.8,0.40202]
[1728310041361,3.60981,2487.9,2487.7,0.40202]
[1728310041668,0.40202,2487.8,2487.4,3.2078]
[1728310041857,3.2078,2487.9,2487.4,3.2078]
[1728310042161,3.60981,2487.9,2487.7,0.40203]
[1728310042356,0.40204,2487.7,2487.5,0.40206]
[1728310042552,0.40202,2487.8,2487.6,0.40204]
[1728310042858,0.40203,2487.8,2487.6,0.40204]
[1728310043054,3.2078,2487.9,2487.6,0.40204]
[1728310043264,0.40204,2487.7,2487.5,0.40205]
[1728310043454,3.2078,2487.9,2487.4,3.2078]
[1728310043651,0.40204,2487.7,2487.5,0.40205]
[1728310043854,3.2078,2487.9,2487.5,0.40205]
[1728310044157,3.2078,2487.9,2487.5,0.40207]
[1728310044351,3.2078,2487.9,2487.7,0.40203]
[1728310044559,3.2078,2487.9,2487.8,0.40202]
[1728310045774,0.40212,2487.2,2487.1,0.40213]
[1728310045956,3.2078,2487.5,2486.7,1.00547]
[1728310046155,1.00511,2487.7,2486.8,3.2078]
[1728310046359,0.40208,2487.5,2487.2,0.4021]
[1728310046557,0.40208,2487.4,2487.3,0.3958]
[1728310047766,3.2078,2487.5,2486.7,4.35]
[1728310047959,0.40209,2487.4,2487.2,0.40211]
[1728310048160,3.2078,2487.5,2486.8,0.3958]
[1728310048359,0.40209,2487.4,2487.2,0.40211]
[1728310048565,0.4021,2487.3,2487.1,0.40212]
[1728310048861,3.2078,2487.5,2487.4,0.40208]
[1728310049065,3.60983,2487.8,2487.4,4.02]
[1728310049360,0.40205,2487.7,2487.5,0.81246]
[1728310049761,3.2078,2487.8,2487.5,0.4104]
[1728310050460,3.2078,2487.8,2487.7,0.40203]
[1728310050858,1.77991,2488.4,2488.0,0.40197]
[1728310050859,3.60977,2488.1,2488.0,0.40197]
[1728310051254,3.60978,2488.1,2487.7,0.40203]
[1728310051467,3.2078,2488.1,2488.0,0.40198]
[1728310051866,0.40197,2488.1,2488.0,0.40198]
[1728310052161,0.40195,2488.3,2488.2,0.40194]
[1728310052360,0.40195,2488.3,2488.2,0.40195]
[1728310052556,0.40195,2488.3,2488.2,0.40194]
[1728310053164,0.40195,2488.3,2488.2,0.40195]
[1728310053368,0.40194,2488.3,2488.0,0.40197]
[1728310053565,0.40197,2488.2,2488.1,0.3988]
[1728310053764,1.41173,2488.4,2487.7,0.8005]
[1728310053765,0.40198,2488.1,2488.0,0.40198]
[1728310053970,0.402,2487.9,2487.8,0.3988]
[1728310055061,4.0192,2487.9,2487.6,0.40204]
[1728310055268,0.40203,2487.7,2487.6,0.40204]
[1728310055462,4.21276,2488.1,2487.4,0.4008]
[1728310055656,0.40207,2487.5,2487.4,0.80288]
[1728310055864,0.40207,2487.5,2487.4,0.4008]
[1728310056061,1.0051,2487.7,2487.2,0.40211]
[1728310056376,0.40211,2487.3,2487.2,0.40211]
[1728310056568,3.6103,2487.8,2487.0,0.4008]
[1728310056762,0.40211,2487.3,2487.2,0.40211]
[1728310057067,3.6103,2487.8,2487.0,3.6086]
[1728310057269,1.00509,2487.7,2487.0,3.6086]
[1728310057471,0.40213,2487.2,2487.0,3.6086]
[1728310057770,1.00519,2487.5,2487.0,3.6086]
[1728310057771,0.40213,2487.1,2487.0,0.80293]
[1728310058072,0.40213,2487.1,2487.0,0.40213]
[1728310058270,0.40212,2487.2,2487.1,0.40211]
[1728310058477,4.21299,2487.5,2486.7,0.8029]
[1728310058666,0.40215,2487.1,2487.0,0.40214]
[1728310059169,4.0208,2487.1,2486.9,0.40215]
[1728310059371,0.40214,2487.1,2487.0,0.40214]
[1728310059672,0.40215,2487.0,2486.9,0.40216]
[1728310059867,4.62321,2487.2,2486.7,0.3893]
[1728310060067,0.40215,2487.0,2486.9,0.40215]
[1728310060464,0.40218,2486.8,2486.7,0.79149]
[1728310060664,0.40218,2486.9,2486.8,0.40217]
[1728310060966,0.40219,2486.8,2486.7,0.40219]
[1728310061166,3.6179,2487.2,2486.6,3.2078]
[1728310061366,0.40219,2486.7,2486.6,0.40221]
[1728310061566,1.00542,2486.9,2486.0,0.3896]
[1728310061567,3.2078,2486.9,2486.0,0.3896]
[1728310061768,0.40232,2485.9,2485.8,3.61014]
[1728310061964,0.40236,2485.7,2485.6,0.40236]
[1728310062164,3.2078,2486.0,2485.3,0.3883]
[1728310062364,3.2078,2486.0,2485.7,0.40235]
[1728310062365,0.40233,2485.9,2485.7,0.40235]
[1728310062676,3.2078,2486.3,2485.4,3.87]
[1728310062975,0.4023,2486.1,2485.8,0.40233]
[1728310063271,0.40232,2486.0,2485.8,0.40233]
[1728310063474,0.40232,2485.9,2485.4,3.87]
[1728310063777,1.0057,2486.2,2485.8,0.40234]
[1728310063778,0.40232,2486.0,2485.8,0.40234]
[1728310063975,3.61007,2486.3,2486.1,0.40229]
[1728310064163,3.2078,2486.3,2485.4,3.87]
[1728310064365,0.40229,2486.2,2486.0,0.40231]
[1728310064772,0.40229,2486.2,2485.6,3.2078]
[1728310065076,0.40229,2486.2,2486.0,0.4023]
[1728310065275,3.2078,2486.3,2486.0,0.4023]
[1728310065578,3.6179,2486.6,2485.7,1.0059]
[1728310065876,0.40224,2486.5,2486.3,0.40226]
[1728310066073,0.40224,2486.5,2485.8,1.00586]
[1728310066074,0.40222,2486.6,2486.4,0.40223]
[1728310066377,0.40222,2486.6,2486.1,0.40229]
[1728310066378,5.02716,2486.6,2486.1,0.40229]
[1728310066581,5.02716,2486.6,2485.9,3.6332]
[1728310066582,0.4023,2486.1,2485.9,0.82772]
[1728310066878,0.40226,2486.3,2485.9,0.82772]
[1728310067072,0.4023,2486.1,2485.5,4.35]
[1728310067272,0.40227,2486.3,2486.1,0.40229]
[1728310067567,0.40229,2486.2,2486.0,0.4023]
[1728310067773,0.40227,2486.3,2486.1,0.40229]
[1728310067976,0.4078,2486.4,2485.6,1.43131]
[1728310067977,0.4023,2486.1,2485.9,0.40232]
[1728310068177,0.40229,2486.2,2485.9,0.40232]
[1728310068480,0.4078,2486.4,2486.0,0.40231]
[1728310068675,0.40227,2486.3,2486.0,0.40231]
[1728310069073,0.40227,2486.3,2486.1,0.40229]
[1728310069571,0.4078,2486.4,2486.1,0.40229]
[1728310069772,0.40227,2486.3,2485.7,4.2137]
[1728310069973,0.40227,2486.3,2486.1,0.40229]
[1728310070876,0.4078,2486.4,2486.2,0.40227]
[1728310071074,0.4078,2486.4,2485.8,1.00586]
[1728310071271,0.40233,2485.9,2485.7,0.40234]
[1728310071478,1.00575,2486.1,2485.3,0.7779]
[1728310071671,1.00575,2486.1,2485.3,1.1785]
[1728310071882,0.40231,2486.0,2485.6,0.40237]
[1728310072189,3.2078,2486.0,2485.3,0.7889]
[1728310072482,0.40237,2485.7,2485.5,0.40238]
[1728310072875,0.40237,2485.7,2485.0,6.38824698]
[1728310072876,0.40247,2485.0,2484.8,1.03207698]
[1728310073076,0.40247,2485.0,2484.1,8.17433359]
[1728310073077,1.00629,2484.8,2484.1,0.6167]
[1728310073380,0.4026,2484.2,2484.1,0.4147]
[1728310073576,8.56419,2484.5,2484.1,0.4147]
[1728310073883,7.5578,2484.5,2484.1,0.4147]
[1728310074075,1.00643,2484.4,2484.1,0.4147]
[1728310074273,0.40262,2484.1,2483.9,0.40263]
[1728310074479,1.00643,2484.4,2483.8,0.81525]
[1728310074685,1.00643,2484.4,2483.9,0.40263]
[1728310074884,0.40261,2484.2,2483.9,0.40263]
[1728310075084,0.40262,2484.2,2483.9,0.40263]
[1728310075590,0.40262,2484.1,2483.9,0.40264]
[1728310075785,1.00643,2484.4,2483.8,0.4126]
[1728310075975,3.2078,2484.5,2483.8,0.4126]
[1728310076290,0.40253,2484.6,2484.0,1.00659]
[1728310076584,0.40253,2484.6,2483.9,1.00663]
[1728310076585,0.40251,2484.8,2484.6,0.40253]
[1728310076783,3.2078,2484.9,2484.1,0.3906]
[1728310077286,0.40258,2484.3,2484.2,0.40259]
[1728310077681,0.40258,2484.4,2484.1,0.3906]
[1728310077886,0.40258,2484.4,2484.3,0.40258]
[1728310078089,3.2078,2484.6,2484.1,0.40261]
[1728310078090,0.4026,2484.3,2484.1,0.40261]
[1728310078392,0.40259,2484.3,2484.1,0.40261]
[1728310079083,3.2078,2484.6,2483.8,1.41925]
[1728310079084,0.40258,2484.4,2483.8,1.41925]
[1728310079284,0.40256,2484.5,2484.3,0.40257]
[1728310079782,3.2078,2484.6,2483.8,0.4126]
[1728310080086,3.2078,2484.6,2484.3,0.40258]
[1728310080087,0.40256,2484.5,2484.3,0.40258]
[1728310080281,3.2078,2484.6,2483.8,0.4126]
[1728310080482,1.00628,2484.8,2483.8,0.4126]
[1728310080483,3.2078,2484.3,2483.8,0.4126]
[1728310080892,3.6104,2484.3,2484.1,0.4026]
[1728310081079,3.2078,2484.3,2484.1,0.4026]
[1728310081386,0.4026,2484.2,2484.1,0.40261]
[1728310081691,3.2078,2484.3,2484.2,0.4026]
[1728310081886,0.40261,2484.2,2484.1,0.40261]
[1728310082279,3.2078,2484.3,2483.8,0.4126]
[1728310082586,3.61039,2484.3,2483.8,0.4126]
[1728310082892,8.46872758,2491.5,2483.8,1.41925]
[1728310082893,3.2078,2484.6,2483.8,1.41925]
[1728310083079,3.2078,2484.6,2483.9,1.00663]
[1728310083080,0.40256,2484.5,2483.9,1.00663]
[1728310083279,3.2078,2484.6,2484.3,0.40258]
[1728310083482,3.2078,2484.6,2484.4,0.40256]
[1728310083483,0.40256,2484.5,2484.4,0.40256]
[1728310083685,3.2078,2484.6,2484.0,1.00659]
[1728310083890,3.2078,2484.6,2484.4,0.40256]
[1728310083891,0.40256,2484.5,2484.4,0.40256]
[1728310084183,0.40261,2484.2,2484.1,0.40261]
[1728310084387,3.2078,2484.3,2483.8,0.4126]
[1728310084592,3.2078,2484.3,2484.0,0.40263]
[1728310084593,0.40262,2484.1,2484.0,0.40263]
[1728310084782,3.2078,2484.6,2483.8,0.4126]
[1728310084983,0.40262,2484.1,2484.0,0.40262]